fUSD/lending_fUSD_20240814
["ID","MTS","AMOUNT","RATE_DAILY","PERIOD"]
[334869146,1723620648010,-500.0,0.00013698,2]
[334869147,1723620648019,-2217.29,0.00013698,2]
[334869148,1723620648030,-500.0,0.00013698,2]
[334869149,1723620648039,-723.59,0.00013698,2]
[334869150,1723620648048,-829.58,0.00013698,2]
[334869151,1723620648057,-741.89,0.00013698,2]
[334869152,1723620648066,-529.95,0.00013698,2]
[334869153,1723620648075,-500.0,0.00013698,2]
[334869154,1723620648085,-530.92,0.00013698,2]
[334869155,1723620648094,-598.22,0.00013698,2]
[334869156,1723620648103,-500.0,0.00013698,2]
[334869157,1723620648112,-686.51,0.00013698,2]
[334869158,1723620648121,-500.0,0.00013698,2]
[334869159,1723620648131,-500.0,0.00013698,2]
[334869160,1723620648140,-770.24,0.00013698,2]
[334869161,1723620648149,-500.0,0.00013698,2]
[334869162,1723620648158,-737.04,0.00013698,2]
[334869163,1723620648167,-500.0,0.00013698,2]
[334869164,1723620648176,-561.79,0.00013698,2]
[334869165,1723620648185,-398.64923546,0.00013698,2]
[334869166,1723620648193,-826.62,0.00013698,2]
[334869167,1723620648202,-500.0,0.00013698,2]
[334869168,1723620648211,-916.91,0.00013698,2]
[334869169,1723620648220,-500.0,0.00013698,2]
[334869170,1723620648229,-1114.22,0.00013698,2]
[334869171,1723620648238,-500.0,0.00013698,2]
[334869172,1723620648247,-500.0,0.00013698,2]
[334869173,1723620648256,-250.83357144,0.00013698,2]
[334869174,1723620648265,-1356.07,0.00013698,2]
[334869175,1723620648274,-500.0,0.00013698,2]
[334869176,1723620648284,-500.0,0.00013698,2]
[334869177,1723620648293,-1189.45,0.00013698,2]
[334869178,1723620648303,-500.0,0.00013698,2]
[334869179,1723620648312,-500.0,0.00013698,2]
[334869180,1723620648321,-500.0,0.00013698,2]
[334869181,1723620648330,-747.49,0.00013698,2]
[334869182,1723620648340,-500.0,0.00013698,2]
[334869183,1723620648356,-500.0,0.00013698,2]
[334869184,1723620648366,-500.0,0.00013698,2]
[334869185,1723620648375,-500.0,0.00013698,2]
[334869186,1723620648385,-3005.06,0.00013698,2]
[334869187,1723620648394,-500.0,0.00013698,2]
[334869188,1723620648403,-500.0,0.00013698,2]
[334869189,1723620648415,-500.0,0.00013698,2]
[334869190,1723620648424,-1128.02,0.00013698,2]
[334869191,1723620648433,-500.0,0.00013698,2]
[334869192,1723620648442,-500.0,0.00013698,2]
[334869193,1723620648451,-500.0,0.00013698,2]
[334869194,1723620648461,-7149.95,0.00013699,2]
[334869195,1723620648470,-4773.08,0.00013699,2]
[334869196,1723620648479,-203.91,0.00013699,2]
[334869197,1723620648489,-17498.91,0.00013699,2]
[334869198,1723620648498,-1742.79565296,0.00013699,2]
[334869199,1723620648507,-1298.45974265,0.00013699,2]
[334869200,1723620648517,-102678.61,0.000137,2]
[334869201,1723620648526,-172.69,0.00013773,2]
[334869202,1723620648535,-1069.4,0.00013799,2]
[334869203,1723620648544,-151.0,0.000138,2]
[334869204,1723620648553,-151.0,0.000138,2]
[334869205,1723620648562,-151.0,0.000138,2]
[334869206,1723620648571,-172.775472,0.000138,2]
[334869207,1723620648581,-151.0,0.000138,2]
[334869208,1723620648590,-151.0,0.000138,2]
[334869209,1723620648599,-152.273313,0.000138,2]
[334869210,1723620648608,-151.0,0.000138,2]
[334869211,1723620648617,-151.0,0.000138,2]
[334869212,1723620648626,-151.0,0.000138,2]
[334869213,1723620648635,-151.0,0.000138,2]
[334869214,1723620648644,-151.0,0.000138,2]
[334869215,1723620648653,-151.0,0.000138,2]
[334869216,1723620648663,-345.908315,0.000138,2]
[334869217,1723620648672,-345.908315,0.000138,2]
[334869218,1723620648681,-152.072675,0.000138,2]
[334869219,1723620648690,-259172.313325,0.000138,2]
[334869220,1723620648699,-151.586059,0.000138,2]
[334869221,1723620648709,-151.0,0.000138,2]
[334869222,1723620648718,-151.0,0.000138,2]
[334869223,1723620648728,-1000.0,0.000138,2]
[334869224,1723620648738,-151.0,0.000138,2]
[334869225,1723620648747,-1000.0,0.000138,2]
[334869226,1723620648756,-151.0,0.000138,2]
[334869227,1723620648766,-151.0,0.000138,2]
[334869228,1723620648775,-151.0,0.000138,2]
[334869229,1723620648784,-151.0,0.000138,2]
[334869230,1723620648793,-151.0,0.000138,2]
[334869231,1723620648802,-151.0,0.000138,2]
[334869232,1723620648811,-2841.08302262,0.00013859,2]
[334869233,1723620648820,-984.15353677,0.00013879,2]
[334869234,1723620648830,-1069.4,0.00013889,2]
[334869235,1723620648840,-289.41545164,0.00013896,2]
[334869236,1723620648849,-155.27713718,0.00013896,2]
[334869237,1723620648858,-1069.4,0.00013899,2]
[334869238,1723620648867,-165.53859276,0.00013899,2]
[334869239,1723620648876,-151.0,0.000139,2]
[334869240,1723620648886,-152.196415,0.000139,2]
[334869241,1723620648895,-151.0,0.000139,2]
[334869242,1723620648904,-151.0,0.000139,2]
[334869243,1723620648914,-151.0,0.000139,2]
[334869244,1723620648923,-190.541969,0.000139,2]
[334869245,1723620648932,-190.541969,0.000139,2]
[334869246,1723620648942,-151.0,0.000139,2]
[334869247,1723620648952,-151.0,0.000139,2]
[334869248,1723620648961,-151.0,0.000139,2]
[334869249,1723620648971,-151.679642,0.000139,2]
[334869250,1723620648980,-151.0,0.000139,2]
[334869251,1723620648989,-151.0,0.000139,2]
[334869252,1723620648999,-151.0,0.000139,2]
[334869253,1723620649007,-151.427422,0.000139,2]
[334869254,1723620649016,-151.0,0.000139,2]
[334869255,1723620649026,-151.0,0.000139,2]
[334869256,1723620649035,-151.0,0.000139,2]
[334869257,1723620649044,-151.0,0.000139,2]
[334869258,1723620649054,-151.0,0.000139,2]
[334869259,1723620649063,-151.0,0.000139,2]
[334869260,1723620649072,-169.736676,0.000139,2]
[334869261,1723620649082,-169.736676,0.000139,2]
[334869262,1723620649091,-394941.934204,0.000139,2]
[334869263,1723620649100,-151.0,0.000139,2]
[334869264,1723620649110,-151.0,0.000139,2]
[334869265,1723620649119,-152.656134,0.000139,2]
[334869266,1723620649128,-151.0,0.000139,2]
[334869267,1723620649137,-1020.31416296,0.000139,2]
[334869268,1723620649147,-151.0,0.000139,2]
[334869269,1723620649157,-1000.0,0.00013947,2]
[334869270,1723620649166,-7481.9871067,0.00013962,2]
[334869271,1723620649175,-21378.7810417,0.00013962,2]
[334869272,1723620649184,-3103.8762761,0.00013962,2]
[334869273,1723620649194,-1069.4,0.00013971,2]
[334869274,1723620649203,-1069.4,0.00013971,2]
[334869275,1723620649212,-154.515367,0.00013972,2]
[334869276,1723620649221,-500.0,0.00013972,2]
[334869277,1723620649231,-500.0,0.00013972,2]
[334869278,1723620649240,-151.0,0.00013972,2]
[334869279,1723620649249,-500.0,0.00013972,2]
[334869280,1723620649258,-500.0,0.00013972,2]
[334869281,1723620649268,-500.0,0.00013972,2]
[334869282,1723620649278,-500.0,0.00013972,2]
[334869283,1723620649287,-500.0,0.00013972,2]
[334869284,1723620649297,-500.0,0.00013972,2]
[334869285,1723620649306,-500.0,0.00013972,2]
[334869286,1723620649315,-500.0,0.00013972,2]
[334869287,1723620649325,-183.48982433,0.00013972,2]
[334869288,1723620649334,-560.85,0.00013972,2]
[334869289,1723620649348,-500.0,0.00013972,2]
[334869290,1723620649357,-500.0,0.00013972,2]
[334869291,1723620649367,-500.0,0.00013972,2]
[334869292,1723620649377,-231.98035505,0.00013972,2]
[334869293,1723620649386,-500.0,0.00013972,2]
[334869294,1723620649396,-500.0,0.00013972,2]
[334869295,1723620649405,-151.0,0.00013972,2]
[334869296,1723620649418,-500.0,0.00013972,2]
[334869297,1723620649427,-500.0,0.00013972,2]
[334869298,1723620649437,-151.0,0.00013972,2]
[334869299,1723620649447,-189.70723801,0.00013972,2]
[334869300,1723620649457,-500.0,0.00013972,2]
[334869301,1723620649467,-500.0,0.00013972,2]
[334869302,1723620649476,-500.0,0.00013972,2]
[334869303,1723620649487,-510.54,0.00013972,2]
[334869304,1723620649496,-500.0,0.00013972,2]
[334869305,1723620649506,-560.91,0.00013972,2]
[334869306,1723620649515,-151.0,0.00013972,2]
[334869307,1723620649525,-510.65,0.00013972,2]
[334869308,1723620649535,-500.0,0.00013972,2]
[334869309,1723620649545,-500.0,0.00013972,2]
[334869310,1723620649555,-151.0,0.00013972,2]
[334869311,1723620649565,-500.0,0.00013972,2]
[334869312,1723620649574,-151.0,0.00013972,2]
[334869313,1723620649583,-151.0,0.00013972,2]
[334869314,1723620649594,-1141.96,0.00013972,2]
[334869315,1723620649603,-500.0,0.00013972,2]
[334869316,1723620649612,-500.0,0.00013972,2]
[334869317,1723620649622,-500.0,0.00013972,2]
[334869318,1723620649631,-500.0,0.00013972,2]
[334869319,1723620649640,-513.16,0.00013972,2]
[334869320,1723620649649,-500.0,0.00013972,2]
[334869321,1723620649659,-3147.98,0.00013972,2]
[334869322,1723620649669,-500.0,0.00013972,2]
[334869323,1723620649679,-500.0,0.00013972,2]
[334869324,1723620649688,-500.0,0.00013972,2]
[334869325,1723620649698,-500.0,0.00013972,2]
[334869326,1723620649708,-500.0,0.00013972,2]
[334869327,1723620649717,-500.0,0.00013972,2]
[334869328,1723620649735,-500.0,0.00013972,2]
[334869329,1723620649745,-500.0,0.00013972,2]
[334869330,1723620649755,-500.0,0.00013972,2]
[334869331,1723620649765,-500.0,0.00013972,2]
[334869332,1723620649775,-500.0,0.00013972,2]
[334869333,1723620649785,-813.31,0.00013972,2]
[334869334,1723620649795,-650.43,0.00013972,2]
[334869335,1723620649805,-500.0,0.00013972,2]
[334869336,1723620649815,-525.21,0.00013972,2]
[334869337,1723620649825,-501.53973111,0.00013972,2]
[334869338,1723620649835,-500.0,0.00013972,2]
[334869339,1723620649845,-500.0,0.00013972,2]
[334869340,1723620649855,-500.0,0.00013972,2]
[334869341,1723620649868,-500.0,0.00013972,2]
[334869342,1723620649877,-500.0,0.00013972,2]
[334869343,1723620649887,-500.0,0.00013972,2]
[334869344,1723620649896,-500.0,0.00013972,2]
[334869345,1723620649905,-597.92,0.00013972,2]
[334869346,1723620649915,-151.0,0.00013972,2]
[334869347,1723620649925,-500.0,0.00013972,2]
[334869348,1723620649935,-500.0,0.00013972,2]
[334869349,1723620649944,-500.0,0.00013972,2]
[334869350,1723620649954,-500.0,0.00013972,2]
[334869351,1723620649965,-500.0,0.00013972,2]
[334869352,1723620649974,-151.0,0.00013972,2]
[334869353,1723620649984,-802.41,0.00013972,2]
[334869354,1723620649995,-500.0,0.00013972,2]
[334869355,1723620650006,-506.88,0.00013972,2]
[334869356,1723620650015,-921.35,0.00013972,2]
[334869357,1723620650025,-500.0,0.00013972,2]
[334869358,1723620650035,-300.70325883,0.00013972,2]
[334869359,1723620650045,-500.0,0.00013972,2]
[334869360,1723620650055,-801.76,0.00013972,2]
[334869361,1723620650065,-500.0,0.00013972,2]
[334869362,1723620650074,-500.0,0.00013972,2]
[334869363,1723620650084,-500.0,0.00013972,2]
[334869364,1723620650094,-512.5,0.00013972,2]
[334869365,1723620650104,-503.92,0.00013972,2]
[334869366,1723620650114,-151.0,0.00013972,2]
[334869367,1723620650123,-511.42,0.00013972,2]
[334869368,1723620650133,-151.0,0.00013972,2]
[334869369,1723620650142,-890.99,0.00013972,2]
[334869370,1723620650152,-641.13,0.00013972,2]
[334869371,1723620650162,-500.0,0.00013972,2]
[334869372,1723620650172,-500.0,0.00013972,2]
[334869373,1723620650182,-727.93,0.00013972,2]
[334869374,1723620650191,-662.34,0.00013972,2]
[334869375,1723620650201,-500.0,0.00013972,2]
[334869376,1723620650210,-500.0,0.00013972,2]
[334869377,1723620650220,-500.0,0.00013972,2]
[334869378,1723620650230,-500.0,0.00013972,2]
[334869379,1723620650239,-500.0,0.00013972,2]
[334869380,1723620650249,-500.0,0.00013972,2]
[334869381,1723620650259,-694.43,0.00013972,2]
[334869382,1723620650268,-500.0,0.00013972,2]
[334869383,1723620650278,-570.68,0.00013972,2]
[334869384,1723620650287,-500.0,0.00013972,2]
[334869385,1723620650297,-500.0,0.00013972,2]
[334869386,1723620650307,-255.907428,0.00013972,2]
[334869387,1723620650316,-151.0,0.00013972,2]
[334869388,1723620650326,-500.0,0.00013972,2]
[334869389,1723620650335,-500.0,0.00013972,2]
[334869390,1723620650345,-151.30104,0.00013972,2]
[334869391,1723620650355,-500.0,0.00013972,2]
[334869392,1723620650364,-500.0,0.00013972,2]
[334869393,1723620650374,-500.0,0.00013972,2]
[334869394,1723620650383,-1238.47,0.00013972,2]
[334869395,1723620650393,-500.0,0.00013972,2]
[334869396,1723620650402,-500.0,0.00013972,2]
[334869397,1723620650413,-500.0,0.00013972,2]
[334869398,1723620650425,-579.57,0.00013972,2]
[334869399,1723620650434,-500.0,0.00013972,2]
[334869400,1723620650444,-500.0,0.00013972,2]
[334869401,1723620650453,-500.0,0.00013972,2]
[334869402,1723620650463,-500.0,0.00013972,2]
[334869403,1723620650472,-500.0,0.00013972,2]
[334869404,1723620650482,-500.0,0.00013972,2]
[334869405,1723620650492,-1335.33,0.00013972,2]
[334869406,1723620650502,-829.86,0.00013972,2]
[334869407,1723620650512,-190.541969,0.00013972,2]
[334869408,1723620650522,-500.0,0.00013972,2]
[334869409,1723620650531,-594.0,0.00013972,2]
[334869410,1723620650541,-500.0,0.00013972,2]
[334869411,1723620650550,-190.541969,0.00013972,2]
[334869412,1723620650560,-544.43,0.00013972,2]
[334869413,1723620650569,-500.0,0.00013972,2]
[334869414,1723620650579,-500.0,0.00013972,2]
[334869415,1723620650588,-500.0,0.00013972,2]
[334869416,1723620650599,-660.36,0.00013972,2]
[334869417,1723620650608,-500.0,0.00013972,2]
[334869418,1723620650618,-500.0,0.00013972,2]
[334869419,1723620650628,-500.0,0.00013972,2]
[334869420,1723620650637,-500.0,0.00013972,2]
[334869421,1723620650647,-500.0,0.00013972,2]
[334869422,1723620650656,-1025.59,0.00013972,2]
[334869423,1723620650666,-500.0,0.00013972,2]
[334869424,1723620650676,-500.0,0.00013972,2]
[334869425,1723620650685,-500.0,0.00013972,2]
[334869426,1723620650695,-151.0,0.00013972,2]
[334869427,1723620650705,-500.0,0.00013972,2]
[334869428,1723620650715,-500.0,0.00013972,2]
[334869429,1723620650725,-975.8,0.00013972,2]
[334869430,1723620650735,-500.0,0.00013972,2]
[334869431,1723620650744,-500.0,0.00013972,2]
[334869432,1723620650754,-500.0,0.00013972,2]
[334869433,1723620650763,-516.14,0.00013972,2]
[334869434,1723620650773,-500.0,0.00013972,2]
[334869435,1723620650784,-151.0,0.00013972,2]
[334869436,1723620650793,-500.0,0.00013972,2]
[334869437,1723620650803,-151.0,0.00013972,2]
[334869438,1723620650812,-500.0,0.00013972,2]
[334869439,1723620650822,-537.52,0.00013972,2]
[334869440,1723620650831,-500.0,0.00013972,2]
[334869441,1723620650842,-500.0,0.00013972,2]
[334869442,1723620650852,-500.0,0.00013972,2]
[334869443,1723620650861,-500.0,0.00013972,2]
[334869444,1723620650871,-500.0,0.00013972,2]
[334869445,1723620650880,-500.0,0.00013972,2]
[334869446,1723620650890,-500.0,0.00013972,2]
[334869447,1723620650901,-500.0,0.00013972,2]
[334869448,1723620650911,-500.0,0.00013972,2]
[334869449,1723620650922,-500.0,0.00013972,2]
[334869450,1723620650932,-500.0,0.00013972,2]
[334869451,1723620650942,-500.0,0.00013972,2]
[334869452,1723620650953,-500.0,0.00013972,2]
[334869453,1723620650964,-500.0,0.00013972,2]
[334869454,1723620650974,-500.0,0.00013972,2]
[334869455,1723620650983,-617.54,0.00013972,2]
[334869456,1723620650992,-1108.96,0.00013972,2]
[334869457,1723620651002,-643.5,0.00013972,2]
[334869458,1723620651012,-500.0,0.00013972,2]
[334869459,1723620651021,-500.0,0.00013972,2]
[334869460,1723620651031,-500.0,0.00013972,2]
[334869461,1723620651041,-721.48,0.00013972,2]
[334869462,1723620651050,-500.0,0.00013972,2]
[334869463,1723620651060,-471.43548091,0.00013972,2]
[334869464,1723620651070,-500.0,0.00013972,2]
[334869465,1723620651080,-500.0,0.00013972,2]
[334869466,1723620651089,-500.0,0.00013972,2]
[334869467,1723620651099,-500.0,0.00013972,2]
[334869468,1723620651109,-500.0,0.00013972,2]
[334869469,1723620651119,-500.0,0.00013972,2]
[334869470,1723620651128,-500.0,0.00013972,2]
[334869471,1723620651138,-500.0,0.00013972,2]
[334869472,1723620651147,-951.16,0.00013972,2]
[334869473,1723620651158,-151.0,0.00013972,2]
[334869474,1723620651168,-524.70141465,0.00013972,2]
[334869475,1723620651178,-500.0,0.00013972,2]
[334869476,1723620651188,-151.0,0.00013972,2]
[334869477,1723620651197,-500.0,0.00013972,2]
[334869478,1723620651207,-500.0,0.00013972,2]
[334869479,1723620651217,-327.72895915,0.00013972,2]
[334869480,1723620651227,-500.0,0.00013972,2]
[334869481,1723620651236,-500.0,0.00013972,2]
[334869482,1723620651246,-500.0,0.00013972,2]
[334869483,1723620651256,-500.0,0.00013972,2]
[334869484,1723620651265,-500.0,0.00013972,2]
[334869485,1723620651275,-151.0,0.00013972,2]
[334869486,1723620651285,-500.0,0.00013972,2]
[334869487,1723620651295,-500.0,0.00013972,2]
[334869488,1723620651305,-500.0,0.00013972,2]
[334869489,1723620651314,-500.0,0.00013972,2]
[334869490,1723620651324,-500.0,0.00013972,2]
[334869491,1723620651334,-151.0,0.00013972,2]
[334869492,1723620651345,-500.0,0.00013972,2]
[334869493,1723620651355,-517.4,0.00013972,2]
[334869494,1723620651365,-500.0,0.00013972,2]
[334869495,1723620651375,-500.0,0.00013972,2]
[334869496,1723620651384,-500.0,0.00013972,2]
[334869497,1723620651394,-500.0,0.00013972,2]
[334869498,1723620651404,-1099.42,0.00013972,2]
[334869499,1723620651414,-500.0,0.00013972,2]
[334869500,1723620651426,-500.0,0.00013972,2]
[334869501,1723620651436,-500.0,0.00013972,2]
[334869502,1723620651446,-500.0,0.00013972,2]
[334869503,1723620651456,-500.0,0.00013972,2]
[334869504,1723620651467,-500.0,0.00013972,2]
[334869505,1723620651478,-720.96,0.00013972,2]
[334869506,1723620651488,-545.17,0.00013972,2]
[334869507,1723620651498,-381.52,0.00013972,2]
[334869508,1723620651508,-500.0,0.00013972,2]
[334869509,1723620651517,-151.0,0.00013972,2]
[334869510,1723620651527,-500.0,0.00013972,2]
[334869511,1723620651536,-563.1524594,0.00013972,2]
[334869512,1723620651547,-502.3,0.00013972,2]
[334869513,1723620651557,-500.0,0.00013972,2]
[334869514,1723620651566,-500.0,0.00013972,2]
[334869515,1723620651576,-500.0,0.00013972,2]
[334869516,1723620651585,-500.0,0.00013972,2]
[334869517,1723620651596,-151.0,0.00013972,2]
[334869518,1723620651606,-500.0,0.00013972,2]
[334869519,1723620651616,-151.0,0.00013972,2]
[334869520,1723620651626,-500.0,0.00013972,2]
[334869521,1723620651636,-500.0,0.00013972,2]
[334869522,1723620651645,-500.0,0.00013972,2]
[334869523,1723620651656,-500.0,0.00013972,2]
[334869524,1723620651666,-151.0,0.00013972,2]
[334869525,1723620651676,-500.0,0.00013972,2]
[334869526,1723620651687,-500.0,0.00013972,2]
[334869527,1723620651697,-500.0,0.00013972,2]
[334869528,1723620651709,-169.736676,0.00013972,2]
[334869529,1723620651720,-500.51201888,0.00013972,2]
[334869530,1723620651730,-500.0,0.00013972,2]
[334869531,1723620651739,-500.0,0.00013972,2]
[334869532,1723620651748,-500.0,0.00013972,2]
[334869533,1723620651759,-169.736676,0.00013972,2]
[334869534,1723620651769,-500.0,0.00013972,2]
[334869535,1723620651778,-500.0,0.00013972,2]
[334869536,1723620651787,-500.0,0.00013972,2]
[334869537,1723620651796,-500.0,0.00013972,2]
[334869538,1723620651806,-500.0,0.00013972,2]
[334869539,1723620651815,-500.58704787,0.00013972,2]
[334869540,1723620651825,-500.0,0.00013972,2]
[334869541,1723620651835,-500.0,0.00013972,2]
[334869542,1723620651846,-500.0,0.00013972,2]
[334869543,1723620651855,-500.0,0.00013972,2]
[334869544,1723620651865,-500.0,0.00013972,2]
[334869545,1723620651876,-500.0,0.00013972,2]
[334869546,1723620651889,-500.0,0.00013972,2]
[334869547,1723620652099,-500.0,0.00013972,2]
[334869548,1723620652109,-862.74,0.00013972,2]
[334869549,1723620652118,-500.0,0.00013972,2]
[334869550,1723620652127,-500.0,0.00013972,2]
[334869551,1723620652137,-500.0,0.00013972,2]
[334869552,1723620652146,-500.0,0.00013972,2]
[334869553,1723620652156,-500.0,0.00013972,2]
[334869554,1723620652166,-552.06,0.00013972,2]
[334869555,1723620652175,-500.0,0.00013972,2]
[334869556,1723620652184,-500.0,0.00013972,2]
[334869557,1723620652194,-500.0,0.00013972,2]
[334869558,1723620652203,-500.0,0.00013972,2]
[334869559,1723620652212,-648.18,0.00013972,2]
[334869560,1723620652222,-151.0,0.00013972,2]
[334869561,1723620652231,-171.84595,0.00013972,2]
[334869562,1723620652240,-860.96,0.00013972,2]
[334869563,1723620652250,-500.0,0.00013972,2]
[334869564,1723620652260,-500.0,0.00013972,2]
[334869565,1723620652269,-1377.93,0.00013972,2]
[334869566,1723620652279,-500.0,0.00013972,2]
[334869567,1723620652289,-1553.5,0.00013972,2]
[334869568,1723620652298,-500.0,0.00013972,2]
[334869569,1723620652308,-500.0,0.00013972,2]
[334869570,1723620652318,-875.79,0.00013972,2]
[334869571,1723620652328,-500.0,0.00013972,2]
[334869572,1723620652339,-500.0,0.00013972,2]
[334869573,1723620652349,-500.0,0.00013972,2]
[334869574,1723620652358,-500.0,0.00013972,2]
[334869575,1723620652368,-500.0,0.00013972,2]
[334869576,1723620652378,-500.0,0.00013972,2]
[334869577,1723620652387,-517.31,0.00013972,2]
[334869578,1723620652397,-500.0,0.00013972,2]
[334869579,1723620652406,-291.01361409,0.00013972,2]
[334869580,1723620652417,-802.23,0.00013972,2]
[334869581,1723620652426,-500.0,0.00013972,2]
[334869582,1723620652436,-577.94,0.00013972,2]
[334869583,1723620652446,-500.0,0.00013972,2]
[334869584,1723620652456,-500.0,0.00013972,2]
[334869585,1723620652467,-557.73,0.00013972,2]
[334869586,1723620652477,-500.0,0.00013972,2]
[334869587,1723620652487,-500.0,0.00013972,2]
[334869588,1723620652497,-151.0,0.00013972,2]
[334869589,1723620652506,-151.0,0.00013972,2]
[334869590,1723620652516,-500.0,0.00013972,2]
[334869591,1723620652525,-500.0,0.00013972,2]
[334869592,1723620652535,-500.0,0.00013972,2]
[334869593,1723620652544,-575.4,0.00013972,2]
[334869594,1723620652554,-603.71,0.00013972,2]
[334869595,1723620652564,-151.0,0.00013972,2]
[334869596,1723620652574,-151.40992,0.00013972,2]
[334869597,1723620652583,-500.0,0.00013972,2]
[334869598,1723620652595,-583.2,0.00013972,2]
[334869599,1723620652605,-500.0,0.00013972,2]
[334869600,1723620652614,-659.68,0.00013972,2]
[334869601,1723620652623,-500.0,0.00013972,2]
[334869602,1723620652633,-500.0,0.00013972,2]
[334869603,1723620652643,-501.07,0.00013972,2]
[334869604,1723620652653,-500.0,0.00013972,2]
[334869605,1723620652662,-500.0,0.00013972,2]
[334869606,1723620652671,-500.0,0.00013972,2]
[334869607,1723620652681,-500.0,0.00013972,2]
[334869608,1723620652691,-509.16,0.00013972,2]
[334869609,1723620652702,-151.692807,0.00013972,2]
[334869610,1723620652711,-500.0,0.00013972,2]
[334869611,1723620652721,-642.16,0.00013972,2]
[334869612,1723620652730,-542.76,0.00013972,2]
[334869613,1723620652739,-500.0,0.00013972,2]
[334869614,1723620652750,-500.0,0.00013972,2]
[334869615,1723620652760,-500.0,0.00013972,2]
[334869616,1723620652769,-500.0,0.00013972,2]
[334869617,1723620652780,-151.0,0.00013972,2]
[334869618,1723620652791,-714.09,0.00013972,2]
[334869619,1723620652801,-263.71189,0.00013972,2]
[334869620,1723620652811,-500.0,0.00013972,2]
[334869621,1723620652821,-500.0,0.00013972,2]
[334869622,1723620652831,-151.0,0.00013972,2]
[334869623,1723620652841,-1105.55,0.00013972,2]
[334869624,1723620652851,-646.97,0.00013972,2]
[334869625,1723620652860,-1302.61,0.00013972,2]
[334869626,1723620652869,-4230.22,0.00013972,2]
[334869627,1723620652879,-500.0,0.00013972,2]
[334869628,1723620652889,-177.971496,0.00013972,2]
[334869629,1723620652899,-500.0,0.00013972,2]
[334869630,1723620652909,-500.0,0.00013972,2]
[334869631,1723620652919,-1927.63,0.00013972,2]
[334869632,1723620652930,-151.0,0.00013972,2]
[334869633,1723620652940,-538.83,0.00013972,2]
[334869634,1723620652951,-151.0,0.00013972,2]
[334869635,1723620652960,-500.0,0.00013972,2]
[334869636,1723620652969,-3771.24,0.00013972,2]
[334869637,1723620652979,-500.0,0.00013972,2]
[334869638,1723620652988,-500.0,0.00013972,2]
[334869639,1723620652998,-500.0,0.00013972,2]
[334869640,1723620653008,-2583.53,0.00013972,2]
[334869641,1723620653018,-151.0,0.00013972,2]
[334869642,1723620653028,-151.0,0.00013972,2]
[334869643,1723620653038,-589.05,0.00013972,2]
[334869644,1723620653047,-500.0,0.00013972,2]
[334869645,1723620653057,-151.0,0.00013972,2]